fUST/lending_fUST_20260324
["ID","MTS","AMOUNT","RATE_DAILY","PERIOD"]
[408805722,1774282053112,-191.72929192,7.346e-05,2]
[408805723,1774282204855,242.95,2e-05,2]
[408805767,1774282231823,-1828.60152261,7.127e-05,2]
[408805769,1774282231835,-352.02,7.127e-05,2]
[408805770,1774282231846,-2600.0,7.127e-05,2]
[408805771,1774282231868,-219.37847739,7.127e-05,2]
[408805772,1774282231886,-2530.62152261,7.199e-05,2]
[408805781,1774282237991,-369.12,7.199e-05,2]
[408805805,1774282240518,-449.28999995,7.199e-05,2]
[408805807,1774282240529,-817.59162712,7.199e-05,2]
[408805809,1774282240541,-833.37685032,7.199e-05,2]
[408805811,1774282240551,-300.0,7.272e-05,2]
[408805813,1774282240561,-5000.0,7.273e-05,2]
[408805816,1774282240571,-523.0,7.273e-05,2]
[408805817,1774282240580,-383.95211009,7.345e-05,2]
[408805908,1774282243222,-816.04788991,7.345e-05,2]
[408805910,1774282243232,-300.0,7.419e-05,2]
[408805911,1774282243242,-300.0,7.419e-05,2]
[408805912,1774282243252,-1192.0,7.641e-05,2]
[408805913,1774282243262,-179.12636,7.647e-05,2]
[408805914,1774282243271,-300.0,7.798e-05,2]
[408805915,1774282243281,-300.0,7.798e-05,2]
[408805916,1774282243290,-300.0,7.798e-05,2]
[408805917,1774282243300,-300.0,7.798e-05,2]
[408805918,1774282243309,-300.0,7.798e-05,2]
[408805919,1774282243319,-300.0,7.798e-05,2]
[408805920,1774282243328,-300.0,7.798e-05,2]
[408805921,1774282243337,-300.0,7.798e-05,2]
[408805922,1774282243347,-300.0,7.798e-05,2]
[408805923,1774282243357,-300.0,7.798e-05,2]
[408805924,1774282243366,-300.0,7.798e-05,2]
[408805925,1774282243375,-300.0,7.798e-05,2]
[408805926,1774282243384,-300.0,7.798e-05,2]
[408805927,1774282243393,-300.0,7.798e-05,2]
[408805928,1774282243403,-300.0,7.798e-05,2]
[408805929,1774282243412,-600.0,7.953e-05,2]
[408805930,1774282243422,-420.0,7.999e-05,2]
[408805931,1774282243432,-1000.0,8.08e-05,2]
[408805932,1774282243441,-420.0,8.161e-05,2]
[408805933,1774282243451,-720.0,8.748e-05,2]
[408805934,1774282243460,-240.0,8.799e-05,2]
[408805935,1774282243473,-587.0,8.977e-05,2]
[408805936,1774282243482,-864.0,9.623e-05,2]
[408805937,1774282243491,-823.0,9.875e-05,2]
[408805938,1774282243501,-1000.0,0.00010585,2]
[408805939,1774282243510,-508.0,0.00010862,2]
[408805940,1774282243520,-1000.0,0.00011644,2]
[408805941,1774282243529,-244.0,0.00011644,2]
[408805942,1774282243538,-1000.0,0.00012808,2]
[408805943,1774282243547,-492.0,0.00012808,2]
[408805944,1774282243557,-236.87539998,0.00013159,2]
[408805945,1774282243567,-1000.0,0.00013699,2]
[408805946,1774282243576,-178.4697778,0.00013978,2]
[408805947,1774282243585,-232.33373548,0.00014,2]
[408805948,1774282243595,-335.7424462,0.00014089,2]
[408805964,1774282246232,-664.2575538,0.00014089,2]
[408805966,1774282246243,-791.0,0.00014089,2]
[408805968,1774282246253,-179.12636,0.00015294,2]
[408805970,1774282246263,-1000.0,0.00015498,2]
[408805972,1774282246273,-1000.0,0.00015498,2]
[408805974,1774282246283,-218.65508116,0.00015834,2]
[408805976,1774282246292,-170.1402055,0.00015834,2]
[408805978,1774282246302,-218.65508115,0.00016324,2]
[408805979,1774282246312,-170.1402055,0.00016324,2]
[408805980,1774282246322,-170.14020549,0.00016829,2]
[408805981,1774282246331,-1000.0,0.00017048,2]
[408805982,1774282246341,-1000.0,0.00017048,2]
[408805983,1774282246351,-579.0,0.00017048,2]
[408805984,1774282246360,-170.14020549,0.00018439,2]
[408805985,1774282246370,-1000.0,0.00018753,2]
[408805986,1774282246379,-1000.0,0.00018753,2]
[408805987,1774282246389,-642.0,0.00018753,2]
[408805988,1774282246399,-1000.0,0.00018848,2]
[408805989,1774282246408,-160.993,0.00019009,2]
[408805990,1774282246418,-15313.5454745,0.0001919,2]
[408805991,1774282246427,-794.6984484,0.0001919,2]
[408805992,1774282246437,-576.5599638,0.0001919,2]
[408805993,1774282246446,-3071.90275,0.00019194,2]
[408805994,1774282246465,-17057.68295279,0.00019206,2]
[408805995,1774282246485,-151.0,0.000193,2]
[408805996,1774282246496,-151.0,0.000193,2]
[408805997,1774282246506,-151.0,0.000193,2]
[408805998,1774282246516,-151.0,0.000193,2]
[408805999,1774282246526,-151.0,0.000194,2]
[408806000,1774282246536,-151.0,0.000194,2]
[408806001,1774282246546,-151.0,0.000194,2]
[408806002,1774282246555,-73241.16570645,0.000194,2]
[408806013,1774282726782,-2500.0,0.000309,120]
[408806014,1774282726811,-700.0,0.000316,120]
[408806015,1774282728096,-24.79946586,0.000316,120]
[408806016,1774282728125,-1366.53617842,0.000316,120]
[408806017,1774282728158,-177.40826495,0.000316,120]
[408806018,1774282728201,-482.18555682,0.000316,120]
[408806019,1774282728234,-815.44723385,0.000316,120]
[408806020,1774282728266,-167.6707706,0.000316,120]
[408806021,1774282728297,-165.9525295,0.000316,120]
[408806026,1774283363224,-1890.649064,4.5e-05,2]
[408806027,1774283363246,-6300.70593546,5e-05,2]
[408806028,1774283401011,3200.0,7.6e-05,120]
[408806029,1774283401038,1800.0,7.6e-05,120]
[408806030,1774283404069,152.49,2e-05,2]
[408806031,1774283417368,1400.0,7.6e-05,120]
[408806032,1774283417401,3200.0,7.6e-05,120]
[408806033,1774283417432,400.0,7.6e-05,120]
[408806058,1774283431981,-551.668,4.95e-05,2]
[408806158,1774283440841,-333.33232428,4.9e-05,2]
[408806162,1774283443697,-1027.76269332,4.9e-05,2]
[408806191,1774283446504,-3638.9049824,4.9e-05,2]
[408806193,1774283446514,-4448.332,4.95e-05,2]
[408806195,1774283446525,-1891.45218781,5e-05,2]
[408806197,1774283446534,-3106.11082984,0.00012021,120]
[408806216,1774284413103,-295.35605,0.00010384,2]
[408806217,1774284413125,-329.48248809,0.00010442,2]
[408806351,1774284640714,-5000.0,5.189e-05,2]
[408806353,1774284640725,-4368.75390134,5.241e-05,2]
[408806388,1774284644872,-631.24609866,5.241e-05,2]
[408806389,1774284644882,-978.66249941,5.294e-05,2]
[408806390,1774284644894,-911.91340463,5.294e-05,2]
[408806391,1774284644946,-69.42650423,5.294e-05,2]
[408806399,1774284646346,-3039.99759173,5.294e-05,2]
[408806400,1774284646356,-167.190132,5.347e-05,2]
[408806401,1774284646366,-300.0,0.00010233,2]
[408806402,1774284646376,-32.26271108,0.00010233,2]
[408806403,1774284646392,-267.73728892,0.00010233,2]
[408806404,1774284646410,-300.0,0.00010233,2]
[408806405,1774284646420,-1194.50271108,0.00010233,2]
[408806406,1774284646432,-5.49728892,0.00010233,2]
[408806407,1774284646441,-300.0,0.00010234,2]
[408806408,1774284646451,-1200.0,0.00010234,2]
[408806409,1774284646460,-300.0,0.00010234,2]
[408806410,1774284646470,-9420.2148791,0.00011204,2]
[408806411,1774284646480,-420.0,0.00011254,2]
[408806412,1774284646490,-300.0,0.00011254,2]
[408806413,1774284646500,-1680.0,0.00011255,2]
[408806414,1774284646514,-1215.0,0.00011256,2]
[408806415,1774284646524,-180.0,0.00012376,2]
[408806416,1774284646534,-1691.0,0.00012377,2]
[408806417,1774284646544,-170.1402055,0.00012475,2]
[408806418,1774284646554,-8377.75285232,0.000125,2]
[408806420,1774285306442,-1824.16219897,0.00011039,2]
[408806421,1774285306466,-1824.16219897,0.00011051,2]
[408806422,1774285306478,-1401.44037154,0.00011051,2]
[408807969,1774285838224,-500.0,0.00033382,120]
[408807971,1774285838248,-291.50825987,0.00033382,120]
[408807973,1774285838271,-5000.0,0.00033382,120]
[408807975,1774285838295,-162086.64773334,0.00033382,60]
[408807977,1774285838319,-10000.0,0.00033382,30]
[408807979,1774285838343,-7122.03018306,0.00033382,30]
[408807981,1774285838368,-32273.34781435,0.00033382,30]
[408807983,1774285838392,-17534.06335217,0.00033382,30]
[408807985,1774285838416,-32909.764133,0.00033382,30]
[408807987,1774285838439,-17496.9419931,0.00033382,30]
[408807988,1774285838463,-85719.0601913,0.00033382,30]
[408807990,1774285838489,-164.92402384,0.00033382,120]
[408807992,1774285838513,-1000.0,0.00033382,120]
[408807994,1774285838537,-1000.0,0.00033382,120]
[408807996,1774285838560,-168.43802411,0.00033382,120]
[408807998,1774285838586,-251.62554061,0.00033382,120]
[408808000,1774285838611,-203.95904702,0.00033382,120]
[408808002,1774285838635,-220.02715671,0.00033382,120]
[408808004,1774285838659,-187.28610809,0.00033382,110]
[408808006,1774285838684,-379.39734865,0.00033382,120]
[408808008,1774285838709,-251.62554061,0.00033382,120]
[408808010,1774285838735,-203.95904702,0.00033382,120]
[408808011,1774285838761,-379.39734865,0.00033382,120]
[408808013,1774285838786,-251.62554061,0.00033382,120]
[408808014,1774285838810,-203.95904702,0.00033382,120]
[408808015,1774285838834,-379.39734865,0.00033382,120]
[408808016,1774285839002,-251.62554061,0.00033382,120]
[408808017,1774285839028,-203.95904702,0.00033382,120]
[408808018,1774285839053,-379.39734865,0.00033382,120]
[408808019,1774285839077,-203.95904702,0.00033382,120]
[408808021,1774285839102,-251.62554061,0.00033382,120]
[408808023,1774285839128,-379.39734865,0.00033382,120]
[408808025,1774285839153,-203.95904702,0.00033382,120]
[408808027,1774285839178,-251.62554061,0.00033382,120]
[408808029,1774285839203,-379.39734865,0.00033382,120]
[408808031,1774285839229,-203.95904702,0.00033382,120]
[408808033,1774285839257,-251.62554061,0.00033382,120]
[408808035,1774285839284,-379.39734865,0.00033382,120]
[408808037,1774285839310,-203.95904702,0.00033382,120]
[408808039,1774285839335,-251.62554061,0.00033382,120]
[408808041,1774285839361,-379.39734865,0.00033382,120]
[408808043,1774285839385,-251.62554061,0.00033382,120]
[408808044,1774285839411,-379.39734865,0.00033382,120]
[408808046,1774285839436,-203.95904702,0.00033382,120]
[408808048,1774285839460,-251.62554061,0.00033382,120]
[408808050,1774285839487,-379.39734865,0.00033382,120]
[408808052,1774285839511,-251.62554061,0.00033382,120]
[408808054,1774285839537,-203.95904702,0.00033382,120]
[408808056,1774285839563,-379.39734865,0.00033382,120]
[408808058,1774285839589,-251.62554061,0.00033382,120]
[408808060,1774285839614,-203.95904702,0.00033382,120]
[408808062,1774285839639,-379.39734865,0.00033382,120]
[408808064,1774285839664,-251.62554061,0.00033382,120]
[408808066,1774285839690,-203.95904702,0.00033382,120]
[408808068,1774285839717,-251.62554061,0.00033382,120]
[408808070,1774285839744,-379.39734865,0.00033382,120]
[408808072,1774285839769,-203.95904702,0.00033382,120]
[408808074,1774285839795,-379.39734865,0.00033382,120]
[408808076,1774285839819,-251.62554061,0.00033382,120]
[408808078,1774285839845,-203.95904702,0.00033382,120]
[408808080,1774285839871,-379.39734865,0.00033382,120]
[408808082,1774285839896,-379.39734865,0.00033382,120]
[408808084,1774285839921,-379.39734865,0.00033382,120]
[408808086,1774285839947,-379.39734865,0.00033382,120]
[408808087,1774285839974,-379.39734865,0.00033382,120]
[408808089,1774285840003,-379.39734865,0.00033382,120]
[408808091,1774285840029,-379.39734865,0.00033382,120]
[408808093,1774285840055,-379.39734865,0.00033382,120]
[408808095,1774285840080,-379.39734865,0.00033382,120]
[408808097,1774285840106,-379.39734865,0.00033382,120]
[408808099,1774285840133,-379.39734865,0.00033382,120]
[408808101,1774285840159,-379.39734865,0.00033382,120]
[408808103,1774285840185,-379.39734865,0.00033382,120]
[408808108,1774285840212,-379.39734865,0.00033382,120]
[408808111,1774285840238,-379.39734865,0.00033382,120]
[408808113,1774285840264,-203.95904695,0.00033382,120]
[408808115,1774285840291,-189.69867428,0.00033382,120]
[408808117,1774285840317,-189.69867428,0.00033382,120]
[408808119,1774285840341,-199.73290842,0.00033382,120]
[408808121,1774285840364,-7798.81111095,0.00033382,60]
[408808123,1774285840388,-81427.99,0.00033382,32]
[408808125,1774285840411,-33393.59616007,0.00033382,60]
[408808127,1774285840435,-24180.0,0.00033382,30]
[408808128,1774285840459,-1486.0,0.00033382,120]
[408808130,1774285840483,-2812.82926572,0.00033382,120]
[408808132,1774285840506,-2000.0,0.00033382,120]
[408808141,1774285840707,-1359.0,0.00010499,2]
[408808142,1774285840722,-3641.0,0.00010499,2]
[408808144,1774285840732,-45.12324199,0.00010605,2]
[408808145,1774285840747,-4954.87675801,0.00010605,2]
[408808146,1774285840756,-569.0,0.00010605,2]
[408808148,1774285840765,-37000.64373662,0.0001072,2]
[408808150,1774285840809,36499.25333398,0.00033382,30]
[408808186,1774285841779,2490.0,0.00033382,30]
[408808242,1774285843411,-6522.63511882,0.0001072,2]
[408808243,1774285843430,-6331.0018908,0.00011478,2]
[408808245,1774285843440,-300.0,0.00011588,2]
[408808246,1774285843450,-568.52261486,0.00012028,2]
[408808247,1774285843459,-3360.80267012,0.000125,2]
[408808249,1774285843468,-611.69365459,0.000129,2]
[408808250,1774285843478,-438.10551786,0.00013233,14]
[408808251,1774285843487,-500.0,0.00013673,2]
[408808253,1774285843496,-500.0,0.00013673,2]
[408808254,1774285843506,-477.82054874,0.00013673,2]
[408808256,1774285843515,-500.0,0.00013673,2]
[408808257,1774285843525,-500.0,0.00013673,2]
[408808258,1774285843534,-500.0,0.00013673,2]
[408808260,1774285843544,-1810.35502498,0.00013699,2]
[408808261,1774285843559,-2280.80767881,0.00013699,2]
[408808361,1774285846514,-13443.88022751,0.00013699,2]
[408808362,1774285846524,-1000.0,0.00013699,2]
[408808364,1774285846534,-14761.25732469,0.00013699,2]
[408808366,1774285846567,-17980.02692572,0.00013699,2]
[408809106,1774285867964,-1000.0,0.00026201,30]
[408809114,1774285868135,-154.0,0.00027691,30]
[408809117,1774285868167,-154.0,0.00028691,30]
[408809119,1774285868196,-162.980181,0.00028767,60]
[408809121,1774285868223,-1000.0,0.00028821,30]
[408809123,1774285868252,-244.0,0.00028821,30]
[408809125,1774285868280,-154.0,0.00029691,30]
[408809127,1774285868305,-285363.70966849,0.0003,30]
[408809129,1774285868331,-154.0,0.00030691,30]
[408809131,1774285868355,-150.0,0.00031,30]
[408809133,1774285868381,-220.77270644,0.000316,120]
[408809136,1774285868405,-452.68098958,0.000316,120]
[408809138,1774285868430,-1030.03552039,0.000316,120]
[408809140,1774285868453,-1179.96747178,0.000316,120]
[408809142,1774285868477,-294.31850941,0.000316,120]
[408809144,1774285868501,-1553.27628834,0.000316,120]
[408809146,1774285868526,-1735.40389911,0.000316,120]
[408809148,1774285868550,-177.40826495,0.000316,120]
[408809150,1774285868574,-385.74844545,0.000316,120]
[408809151,1774285868598,-652.35778708,0.000316,120]
[408809154,1774285868627,-167.6707706,0.000316,120]
[408809156,1774285868652,-579.83957269,0.000316,120]
[408809158,1774285868678,-1229.88256057,0.000316,120]
[408809160,1774285868703,-1145.28,0.000316,30]
[408809162,1774285868728,-154.0,0.00031691,30]
[408809164,1774285868753,-1000.0,0.00031703,30]
[408809166,1774285868778,-492.0,0.00031703,30]
[408809168,1774285868803,-2777.7,0.000319,120]
[408809170,1774285868829,-386.72523594,0.000326,120]
[408809171,1774285868852,-452.68098958,0.000326,120]
[408809173,1774285868876,-1030.03552039,0.000326,120]
[408809175,1774285868900,-1179.96747178,0.000326,120]
[408809177,1774285868928,-294.31850941,0.000326,120]
[408809179,1774285868953,-1553.27628834,0.000326,120]
[408809181,1774285868977,-1735.40389911,0.000326,120]
[408809183,1774285869001,-177.40826495,0.000326,120]
[408809184,1774285869024,-385.74844545,0.000326,120]
[408809186,1774285869048,-652.35778708,0.000326,120]
[408809188,1774285869072,-167.6707706,0.000326,120]
[408809190,1774285869096,-579.83957269,0.000326,120]
[408809192,1774285869120,-1229.88256057,0.000326,120]
[408809194,1774285869143,-154.0,0.00032691,30]
[408809196,1774285869167,-167.2698,0.00032832,30]
[408809198,1774285869191,-500.0,0.00032876,30]
[408809199,1774285869214,-500.0,0.00032876,30]
[408809201,1774285869238,-5000.0,0.00032877,120]
[408809203,1774285869263,-2777.7,0.000329,120]
[408809205,1774285869287,-150.0,0.00033108,30]
[408809207,1774285869311,-157.0,0.000333,120]
[408809209,1774285869336,-263.72,0.000333,120]
[408809211,1774285869359,-154.0,0.00033381,120]
[408809212,1774285869382,-184.0,0.00033381,120]
[408809214,1774285869406,-927.0,0.00033382,30]
[408809216,1774285869431,-828.0,0.00033382,30]
[408809218,1774285869454,-386.72523594,0.000335,120]
[408809220,1774285869478,-452.68098958,0.000335,120]
[408809222,1774285869503,-1030.03552039,0.000335,120]
[408809223,1774285869526,-1179.96747178,0.000335,120]
[408809225,1774285869548,-294.31850941,0.000335,120]
[408809227,1774285869571,-1553.27628834,0.000335,120]
[408809229,1774285869594,-1735.40389911,0.000335,120]
[408809231,1774285869617,-177.40826495,0.000335,120]
[408809233,1774285869643,-385.74844545,0.000335,120]
[408809235,1774285869667,-652.35778708,0.000335,120]
[408809236,1774285869690,-167.6707706,0.000335,120]
[408809238,1774285869714,-579.83957269,0.000335,120]
[408809239,1774285869739,-1229.88256057,0.000335,120]
[408809240,1774285869764,-1103.28,0.00033605,60]
[408809241,1774285869789,-154.0,0.00033691,30]
[408809242,1774285869812,-1103.28,0.00033705,60]
[408809243,1774285869835,-164.85,0.000338,120]
[408809244,1774285869858,-276.91,0.000338,120]
[408809245,1774285869885,-1103.28,0.00033805,60]
[408809246,1774285869910,-200.0,0.0003384,120]
[408809247,1774285869938,-2777.7,0.000339,120]
[408809248,1774285869964,-1103.28,0.00033905,60]
[408809249,1774285869990,-1103.28,0.00034005,60]
[408809250,1774285870015,-1103.28,0.00034105,60]
[408809251,1774285870040,-1103.28,0.00034205,60]
[408809253,1774285870063,-173.09,0.000343,120]
[408809255,1774285870087,-290.76,0.000343,120]
[408809257,1774285870114,-1103.28,0.00034305,60]
[408809259,1774285870137,-154.0,0.00034381,120]
[408809260,1774285870162,-184.0,0.00034381,120]
[408809262,1774285870186,-1103.28,0.00034405,60]
[408809264,1774285870210,-386.72523594,0.000345,120]
[408809266,1774285870233,-452.68098958,0.000345,120]
[408809268,1774285870257,-1030.03552039,0.000345,120]
[408809270,1774285870280,-1179.96747178,0.000345,120]
[408809271,1774285870303,-294.31850941,0.000345,120]
[408809273,1774285870327,-1553.27628834,0.000345,120]
[408809275,1774285870350,-1735.40389911,0.000345,120]
[408809277,1774285870372,-177.40826495,0.000345,120]
[408809279,1774285870395,-385.74844545,0.000345,120]
[408809281,1774285870417,-652.35778708,0.000345,120]
[408809282,1774285870442,-579.83957269,0.000345,120]
[408809284,1774285870465,-1229.88256057,0.000345,120]
[408809286,1774285870488,-1103.28,0.00034505,60]
[408809288,1774285870514,-1103.28,0.00034605,60]
[408809290,1774285870538,-1103.28,0.00034705,60]
[408809292,1774285870561,-305.29,0.000348,120]
[408809294,1774285870583,-181.75,0.000348,120]
[408809295,1774285870607,-1103.28,0.00034805,60]
[408809297,1774285870635,-1000.0,0.00034873,30]
[408809299,1774285870658,-2777.7,0.000349,120]
[408809301,1774285870685,-1103.28,0.00034905,60]
[408809303,1774285870708,-238904.36574965,0.00035,120]
[408809305,1774285870732,-1103.28,0.00035005,60]
[408809307,1774285870756,-1103.28,0.00035105,60]
[408809308,1774285870780,-1103.28,0.00035205,60]
[408809310,1774285870803,-190.84,0.000353,120]
[408809312,1774285870825,-320.56,0.000353,120]
[408809314,1774285870850,-1103.28,0.00035305,60]
[408809316,1774285870876,-154.0,0.00035381,120]
[408809318,1774285870900,-1103.28,0.00035405,60]
[408809320,1774285870926,-1103.28,0.00035505,60]
[408809322,1774285870948,-386.72523594,0.000356,120]
[408809324,1774285870971,-452.68098958,0.000356,120]
[408809331,1774285871114,-1030.03552039,0.000356,120]
[408809333,1774285871138,-1179.96747178,0.000356,120]
[408809335,1774285871163,-294.31850941,0.000356,120]
[408809336,1774285871186,-1553.27628834,0.000356,120]
[408809338,1774285871210,-1735.40389911,0.000356,120]
[408809340,1774285871234,-385.74844545,0.000356,120]
[408809342,1774285871257,-652.35778708,0.000356,120]
[408809344,1774285871282,-579.83957269,0.000356,120]
[408809346,1774285871305,-1229.88256057,0.000356,120]
[408809348,1774285871330,-1103.28,0.00035605,60]
[408809350,1774285871354,-1103.28,0.00035705,60]
[408809352,1774285871377,-200.38,0.000358,120]
[408809354,1774285871402,-336.59,0.000358,120]
[408809356,1774285871429,-1103.28,0.00035805,60]
[408809358,1774285871453,-2777.7,0.000359,120]
[408809360,1774285871478,-1103.28,0.00035905,60]
[408809362,1774285871502,-1000.0,0.00036,120]
[408809364,1774285871531,-1027.82177,0.00036,120]
[408809366,1774285871559,-1103.28,0.00036005,60]
[408809368,1774285871584,-1103.28,0.00036105,60]
[408809370,1774285871609,-1103.28,0.00036205,60]
[408809372,1774285871633,-353.42,0.000363,120]
[408809374,1774285871656,-210.4,0.000363,120]
[408809376,1774285871680,-1103.28,0.00036305,60]
[408809378,1774285871703,-154.0,0.00036381,120]
[408809380,1774285871727,-1103.28,0.00036405,60]
[408809382,1774285871751,-1103.28,0.00036505,60]
[408809384,1774285871773,-1229.88256057,0.000366,120]
[408809386,1774285871797,-1103.28,0.00036605,60]
[408809388,1774285871821,-1735.40389911,0.000367,120]
[408809389,1774285871845,-1103.28,0.00036705,60]
[408809391,1774285871868,-220.92,0.000368,120]
[408809393,1774285871896,-371.09,0.000368,120]
[408809395,1774285871920,-1103.28,0.00036805,60]
[408809397,1774285871947,-2777.7,0.000369,120]
[408809399,1774285871973,-1103.28,0.00036905,60]
[408809401,1774285871996,-1000.0,0.00037,120]
[408809403,1774285872021,-1103.28,0.00037005,60]
[408809405,1774285872047,-1103.28,0.00037105,60]
[408809407,1774285872071,-200.01091298,0.00037204,30]
[408809409,1774285872096,-5000.0,0.00037204,30]
[408809411,1774285872119,-151.0,0.00037204,30]
[408809413,1774285872145,-2074.0,0.00037204,30]
[408809415,1774285872170,-518.5,0.00037204,30]
[408809417,1774285872198,-1103.28,0.00037205,60]
[408809419,1774285872223,-231.96,0.000373,120]
[408809421,1774285872251,-389.64,0.000373,120]
[408809423,1774285872277,-1103.28,0.00037305,60]
[408809425,1774285872301,-154.0,0.00037381,120]
[408809427,1774285872326,-1103.28,0.00037405,60]
[408809429,1774285872352,-200.0,0.00037464,120]
[408809431,1774285872377,-475.0,0.000375,120]
[408809433,1774285872402,-2244.0,0.000375,120]
[408809435,1774285872428,-1103.28,0.00037505,60]
[408809437,1774285872453,-1103.28,0.00037605,60]
[408809438,1774285872478,-1229.88256057,0.000377,120]
[408809440,1774285872503,-1103.28,0.00037705,60]
[408809442,1774285872528,-243.56,0.000378,120]
[408809444,1774285872552,-409.12,0.000378,120]
[408809446,1774285872576,-1735.40389911,0.000378,120]
[408809448,1774285872601,-1103.28,0.00037805,60]
[408809450,1774285872626,-1452.3831338,0.000379,120]
[408809452,1774285872650,-2777.7,0.000379,120]
[408809454,1774285872676,-1103.28,0.00037905,60]
[408809456,1774285872700,-1126040.49762163,0.00038,120]
[408809458,1774285872724,-342.00988723,0.00038,120]
[408809460,1774285872750,-1000.0,0.00038,120]
[408809462,1774285872774,-500.0,0.00038,120]
[408809463,1774285872798,-1000.0,0.00038,30]
[408809465,1774285872822,-2035.42,0.00038,30]
[408809467,1774285872848,-1103.28,0.00038005,60]
[408809469,1774285872874,-151.0,0.00038099,30]
[408809471,1774285872900,-151.0,0.00038099,30]
[408809473,1774285872925,-151.0,0.00038099,30]
[408809475,1774285872949,-151.0,0.00038099,30]
[408809477,1774285872975,-222.02292237,0.00038099,30]
[408809479,1774285873000,-2999.0,0.00038099,30]
[408809481,1774285873026,-5000.0,0.00038099,30]
[408809483,1774285873052,-414.0,0.00038099,30]
[408809485,1774285873078,-151.0,0.00038099,30]
[408809487,1774285873104,-2999.0,0.00038099,30]
[408809489,1774285873136,-2999.0,0.00038099,30]
[408809490,1774285873160,-2999.0,0.00038099,30]
[408809491,1774285873186,-2999.0,0.00038099,30]
[408809492,1774285873211,-160.0,0.00038099,30]
[408809493,1774285873235,-2999.0,0.00038099,30]
[408809494,1774285873259,-2999.0,0.00038099,30]
[408809495,1774285873284,-1895.70827818,0.00038099,30]
[408809496,1774285873307,-2999.0,0.00038099,30]
[408809497,1774285873331,-2999.0,0.00038099,30]
[408809498,1774285873354,-151.0,0.00038099,30]
[408809499,1774285873377,-2999.0,0.00038099,30]
[408809500,1774285873400,-2999.0,0.00038099,30]
[408809501,1774285873424,-2999.0,0.00038099,30]
[408809502,1774285873446,-2999.0,0.00038099,30]
[408809503,1774285873470,-2999.0,0.00038099,30]
[408809504,1774285873494,-2999.0,0.00038099,30]
[408809505,1774285873520,-2000.0,0.00038099,30]
[408809506,1774285873544,-1000.0,0.00038099,30]
[408809507,1774285873568,-500.0,0.00038099,30]
[408809508,1774285873592,-1037.0,0.00038099,30]
[408809509,1774285873616,-1075.369,0.00038099,30]
[408809510,1774285873640,-1115.157653,0.00038099,30]
[408809511,1774285873663,-1156.41848616,0.00038099,30]
[408809512,1774285873686,-1199.20597015,0.00038099,30]
[408809513,1774285873709,-1243.57659104,0.00038099,30]
[408809514,1774285873731,-1289.58892491,0.00038099,30]
[408809516,1774285873754,-1337.30371513,0.00038099,30]
[408809518,1774285873776,-1386.78395259,0.00038099,30]
[408809520,1774285873799,-1438.09495884,0.00038099,30]
[408809522,1774285873822,-500.0,0.00038099,30]
[408809524,1774285873846,-1491.30447232,0.00038099,30]
[408809526,1774285873873,-1546.48273779,0.00038099,30]
[408809528,1774285873900,-1603.70259909,0.00038099,30]
[408809530,1774285873926,-1663.03959526,0.00038099,30]
[408809532,1774285873952,-1724.57206028,0.00038099,30]
[408809533,1774285873975,-1788.38122651,0.00038099,30]
[408809535,1774285873998,-1467.39059582,0.00038099,30]
[408809542,1774285874141,-150.95471359,0.000381,60]
[408809544,1774285874170,-1103.28,0.00038105,60]
[408809546,1774285874195,-205.0,0.000382,120]
[408809548,1774285874220,-1103.28,0.00038205,60]
[408809550,1774285874245,-255.74,0.000383,120]
[408809552,1774285874269,-429.58,0.000383,120]
[408809554,1774285874294,-1103.28,0.00038305,60]
[408809556,1774285874318,-151.0,0.00038356,120]
[408809558,1774285874343,-194.372526,0.00038356,120]